Cogmind - Beta 16 @@@ ROGUE MODE // 2025.12.05 @ 22:36:47 Player: Zonalar Result: Destroyed self with Mini Grenade Launcher Performance ------------- Evolutions (0) 0 Regions Visited (4) 800 Robots Destroyed (34) 170 Value Destroyed (723) 723 Prototype IDs (5) 100 Alien Tech Used (0) 0 Bonus (0) 0 TOTAL SCORE: 1793 Bonus ------- None Cogmind --------- Core Integrity 0/250 Matter 250/300 Energy 124/140 System Corruption 0% Temperature Cool (53) Movement Rolling (105) Ox1 Location -9/Mines Parts ------- > --- POWER (1) -------- Light Deuterium Engine > --- PROPULSION (2) --- Wheel Compact Wheel > --- UTILITY (2) ------ High-capacity Storage Unit Seismic Detector > --- WEAPON (2) ------- Spread Laser Mini Grenade Launcher > --- INVENTORY (20) --- Ion Engine Combat Airjet Improved Heat Sink Large Storage Unit High-capacity Battery (250) Compact Matter Pod (150) Improved Targeting Computer Hacking Suite Spread Laser Spread Laser Heavy Assault Rifle Light Cannon Mining Laser Peak State ------------ > --- POWER ------------ Ion Engine > --- PROPULSION ------- Light Treads Light Treads > --- UTILITY ---------- Large Storage Unit Improved Terrain Scanner > --- WEAPON ----------- Spread Laser Slug Cannon > --- INVENTORY -------- Ion Engine Wheel Compact Wheel Compact Wheel Improved Heat Sink Medium Matter Pod Seismic Detector Transport Network Coupler Weapon Shielding Hacking Suite Spread Laser Spread Laser Spread Laser Mining Laser [Rating: 15] Favorites ----------- Power Ion Engine Engine Ion Engine Propulsion Light Treads Treads Light Treads Wheel Compact Wheel Utility Improved Terrain Scanner Device Improved Terrain Scanner Storage Large Storage Unit Weapon Spread Laser Energy Gun Spread Laser Ballistic Gun Light Assault Rifle Ballistic Cannon Slug Cannon Launcher Mini Grenade Launcher Special Weapon Mining Laser Build | -11 -10 -10 -10 -9 ------- Run | Yrd Mat Min Exi Min Slots Evolved . | . . . . . Power . | . . . . . Propulsion . | . . . . . Utility . | . . . . . Weapon . | . . . . . Parts Attached 26 | 6 12 1 . 7 Power 5 | 1 1 . . 3 Engine 5 | 1 1 . . 3 Core . | . . . . . Reactor . | . . . . . Propulsion 6 | 2 4 . . . Treads 2 | . 2 . . . Leg . | . . . . . Wheel 4 | 2 2 . . . Hover . | . . . . . Flight . | . . . . . Utility 5 | 1 2 . . 2 Device 2 | . 1 . . 1 Storage 3 | 1 1 . . 1 Processor . | . . . . . Hackware . | . . . . . Protection . | . . . . . Artifact . | . . . . . Weapon 10 | 2 5 1 . 2 Energy Gun 4 | . 3 . . 1 Energy Cannon . | . . . . . Ballistic Gun 3 | 2 1 . . . Ballistic Cannon 1 | . . 1 . . Launcher 1 | . . . . 1 Special Weapon 1 | . 1 . . . Impact Weapon . | . . . . . Slashing Weapon . | . . . . . Piercing Weapon . | . . . . . Special Melee Weapon . | . . . . . Unidentified Prototypes . | . . . . . Parts Lost 7 | . . . . 7 Power 2 | . . . . 2 Propulsion 2 | . . . . 2 Utility 1 | . . . . 1 Weapon 2 | . . . . 2 Highest Loss Streak 3 | . . . . 3 To Critical Strikes . | . . . . . Average Backups 12 | 4 9 14 14 14 Power . | . . 1 1 . Propulsion 2 | 2 3 3 3 1 Utility 4 | . 3 6 5 5 Weapon 4 | 1 3 4 5 5 Tool/Special . | . . . . . Unused Backups 14 | 1 . . 2 11 Power . | . . . . . Propulsion 1 | . . . . 1 Utility 9 | . . . 2 7 Weapon 4 | 1 . . . 3 Tool/Special . | . . . . . Average Slot Usage (%) 99 | . 99 100 100 98 Engine 13 | . 14 14 14 13 Treads 22 | . 24 28 28 1 Wheel 5 | . 3 . . 26 Device 14 | . 14 14 14 14 Storage 14 | . 14 14 14 14 Energy Gun 16 | . 20 15 14 14 Ballistic Gun 2 | . 7 . . . Ballistic Cannon 8 | . . 8 14 12 Peak Build Rating 15 | 7 13 15 15 15 Average Rating 13 | 5 10 13 15 14 On Entrance 9 | . 7 12 15 15 Avg Prop Armor Cover (%) . | . . . . . Naked Turns . | . . . . . Heaviest Build 56 | 12 32 36 36 56 Greatest Support 40 | 26 40 40 40 40 Greatest Overweight (x) 3 | 3 . . . 2 Average Overweight (x) . | . . . . 1 Largest Inventory Capacity 20 | 8 15 15 15 20 Average Capacity 13 | 7 12 15 15 15 Most Carried 15 | 8 15 15 15 15 Average Carried 12 | 4 9 14 14 14 Final Capacity 20 | 8 15 15 15 20 Final Carried 15 | 8 14 15 15 13 Class Distribution -------------------- 99% | Mutant Dominant Class ---------------- Mutant | -10/Materials Mutant | -10/Mines Mutant | -10/Exiles Mutant | -9/Mines Resources | -11 -10 -10 -10 -9 ----------- Run | Yrd Mat Min Exi Min Matter Collected 877 | 298 300 30 . 249 Remotely . | . . . . . Salvage Created 867 | 117 477 . . 273 Parts 61 | 9 36 . . 16 Haulers Intercepted 1 | . 1 . . . Recyclers Shooed . | . . . . . Parts Field Recycled . | . . . . . Retrieved Matter . | . . . . . Parts Self-Destructed . | . . . . . Prevented . | . . . . . Parts Restored . | . . . . . Kills | -11 -10 -10 -10 -9 ------- Run | Yrd Mat Min Exi Min Combat Hostiles Destroyed 28 | . 13 . . 15 Guns 23 | . 13 . . 10 Cannons 4 | . . . . 4 AOE 1 | . . . . 1 Classes Destroyed 10 | 2 5 . . 3 Tunneler 3 | 3 . . . . Hauler 1 | . 1 . . . Recycler 3 | 1 1 . . 1 Operator 1 | . 1 . . . Watcher 2 | . 2 . . . Swarmer 12 | . 5 . . 7 Grunt 8 | . 8 . . . Sentry 2 | . . . . 2 Demolisher 2 | . . . . 2 Assembled 4 | . . . . 4 Best Kill Streak 5 | 2 4 . . 5 Combat Bots Only 4 | . 3 . . 4 Max Kills in Single Turn 2 | 1 2 . . 1 Gunslinging 1 | . 1 . . . Exploded 1 | . . . . 1 Melee . | . . . . . Uniques/NPCs Destroyed . | . . . . . Combat | -11 -10 -10 -10 -9 -------- Run | Yrd Mat Min Exi Min Hostile Shots Fired 128 | . 47 . . 81 Missed 24 | . 14 . . 10 Hits 104 | . 33 . . 71 Melee 1 | . . . . 1 Projectile 103 | . 33 . . 70 AOE 4 | . . . . 4 Critical Strikes 2 | . 2 . . . Part Disruptions 1 | . . . . 1 Damage Taken 1185 | . 353 . . 832 Core 251 | . 89 . . 162 Absorbed by Shields . | . . . . . Core Remaining (%) 100 | 100 . . . . Volleys Fired 117 | 19 58 . 5 35 Largest 2 | 2 2 . 1 2 Hottest 130 | 40 130 . 40 130 Shots Fired 218 | 38 112 . 5 63 Gun 183 | 38 110 . . 35 Cannon 29 | . . . 5 24 Launcher 4 | . . . . 4 Special 2 | . 2 . . . Kinetic 107 | 38 40 . 5 24 Thermal 107 | . 72 . . 35 Explosive 4 | . . . . 4 Electromagnetic . | . . . . . Robot Hit Streak 13 | 13 10 . . 10 Robot Miss Streak 8 | 3 6 . . 8 Penetration Max . | . . . . . Secondary Targets 1 | . 1 . . . Max Gunslinging Chain 1 | . 1 . . . Shots Hit Robots 130 | 26 65 . . 39 Core Hits 105 | 8 54 . . 43 Critical Kills 2 | . 1 . . 1 Critical Parts Destroyed 1 | . 1 . . . Critical Strikes 4 | . 3 . . 1 Burn 1 | . 1 . . . Destroy 3 | . 2 . . 1 Melee Attacks . | . . . . . Impact . | . . . . . Slashing . | . . . . . Piercing . | . . . . . Sneak Attacks . | . . . . . Combat Hostiles . | . . . . . Follow-up Attacks . | . . . . . Damage Inflicted 1741 | 214 757 . . 770 Guns 1316 | 214 757 . . 345 Cannons 306 | . . . . 306 Explosions 119 | . . . . 119 Melee . | . . . . . Ramming . | . . . . . Kinetic 714 | 214 194 . . 306 Thermal 908 | . 563 . . 345 Explosive 119 | . . . . 119 Electromagnetic . | . . . . . Impact . | . . . . . Slashing . | . . . . . Piercing . | . . . . . Highest Corruption . | . . . . . Average Corruption . | . . . . . Corruption Purged . | . . . . . Corruption Blocked . | . . . . . Overload Shots . | . . . . . Overflow Damage . | . . . . . Projectiles . | . . . . . Explosions . | . . . . . Melee . | . . . . . Knockbacks 3 | . . . . 3 Impact . | . . . . . Kinetic 3 | . . . . 3 Secondary . | . . . . . Self-Inflicted Damage 37 | . . . . 37 Shots 2 | . . . . 2 Rammed . | . . . . . Targets Rammed . | . . . . . Kicked . | . . . . . Crushed . | . . . . . Highest Temperature 303 | . 303 . . 276 Average Temperature 84 | . 70 . . 106 Received Heat Transfer 269 | . 171 . . 98 Effects 1 | . . . . 1 Interference 1 | . . . . 1 Siege Activations . | . . . . . Martial Activations . | . . . . . Shielding Activations . | . . . . . Robots Disrupted . | . . . . . Combat Hostiles . | . . . . . Robots Corrupted . | . . . . . Combat Hostiles . | . . . . . Parts Fried . | . . . . . Impact Corruptions . | . . . . . Robots Melted . | . . . . . Combat Hostiles . | . . . . . Parts Melted . | . . . . . Heat Transferred 1521 | . 1111 . . 410 Parts Sabotaged . | . . . . . Parts Stolen . | . . . . . Parts Stripped . | . . . . . Power Chain Reactions . | . . . . . Alert | -11 -10 -10 -10 -9 ------- Run | Yrd Mat Min Exi Min Maximum Alert Level . | . . . . . Low Security (%) 100 | 100 100 100 . 100 Level 1 . | . . . . . Level 2 . | . . . . . Level 3 . | . . . . . Level 4 . | . . . . . Level 5 . | . . . . . High Security . | . . . . . Max Security . | . . . . . Peak Influence 130 | 5 128 16 . 130 Initial 16 | . . 16 . . Average 33 | 1 41 1 . 39 Influence Increases 743 | 20 367 . . 356 Destroy 0b10 Robot/C 480 | . 260 . . 220 Destroy 0b10 Robot/NC 50 | 20 25 . . 5 Destroy Leader 106 | . 76 . . 30 Successful Hack 4 | . 4 . . . Disable Machine 30 | . . . . 30 Destroy Structure 43 | . 2 . . 41 Lose Combat Pursuer 30 | . . . . 30 Influence Decreases 631 | 20 325 42 . 244 Entered New Map 26 | . . 26 . . Time Decay 544 | 20 325 16 . 183 Lost Part 61 | . . . . 61 Squads Dispatched 3 | . 3 . . . Investigation 1 | . 1 . . . Extermination . | . . . . . Reinforcement 2 | . 2 . . . Assault . | . . . . . Garrison . | . . . . . Intercept . | . . . . . Searches Triggered . | . . . . . Construction Impeded . | . . . . . Haulers Reinforced . | . . . . . Active Scanning Responses . | . . . . . Cargo Convoy Interrupts . | . . . . . Stealth | -11 -10 -10 -10 -9 --------- Run | Yrd Mat Min Exi Min Distress Signals 1 | . 1 . . . Communications Jammed . | . . . . . Distress Signals . | . . . . . Times Spotted 40 | . 22 . . 18 Peak Tracking Total 4 | . 3 . . 4 Tactical Retreats 2 | . . . . 2 Traps | -11 -10 -10 -10 -9 ------- Run | Yrd Mat Min Exi Min Traps Triggered 2 | . 2 . . . Indirectly . | . . . . . Trap Hack Attempts . | . . . . . Triggered . | . . . . . Disarmed . | . . . . . Reprogrammed . | . . . . . Reused . | . . . . . Traps Extracted . | . . . . . Installed . | . . . . . Triggered . | . . . . . Machines | -11 -10 -10 -10 -9 ---------- Run | Yrd Mat Min Exi Min Machines Disabled 2 | . . . . 2 Max in Single Turn 1 | . . . . 1 Machines Repaired . | . . . . . Machines Dismantled . | . . . . . Machines Sabotaged . | . . . . . Overloaded Fab Kills . | . . . . . Hacking | -11 -10 -10 -10 -9 --------- Run | Yrd Mat Min Exi Min Machines Accessed 10 | . 6 . 4 . Terminals 6 | . 6 . . . Fabricators . | . . . . . Repair Stations . | . . . . . Recycling Units . | . . . . . Scanalyzers . | . . . . . Garrison Access . | . . . . . Total Hacks 23 | . 19 . 4 . Successful 14 | . 10 . 4 . Failed 9 | . 9 . . . Catastrophic 1 | . 1 . . . Database Lockouts . | . . . . . Manual 12 | . 12 . . . Terminals 19 | . 19 . . . Fabricators . | . . . . . Repair Stations . | . . . . . Recycling Units . | . . . . . Scanalyzers . | . . . . . Garrison Access . | . . . . . Terminal Hacks 9 | . 5 . 4 . Record 4 | . . . 4 . Robot Analysis 1 | . 1 . . . Prototype ID Bank 3 | . 3 . . . Dispatch Records 1 | . 1 . . . Fabricator Hacks . | . . . . . Repair Station Hacks . | . . . . . Recycling Unit Hacks . | . . . . . Scanalyzer . | . . . . . Garrison Access Hacks . | . . . . . Unauthorized Hacks 5 | . 5 . . . Terminals 5 | . 5 . . . Botnet 4 | . 4 . . . Operators 1 | . 1 . . . Fabricators . | . . . . . Repair Stations . | . . . . . Recycling Units . | . . . . . Scanalyzers . | . . . . . Garrison Access . | . . . . . Data Cores Recovered . | . . . . . Used . | . . . . . Hacking Detections 6 | . 6 . . . Full Trace Events . | . . . . . Feedback Events . | . . . . . Feedback Blocked . | . . . . . Robot Schematics Acquired . | . . . . . Robots Built . | . . . . . Authchips . | . . . . . Time . | . . . . . Total Robot Build Rating . | . . . . . Part Schematics Acquired . | . . . . . Parts Built . | . . . . . Authchips . | . . . . . Time . | . . . . . Total Part Build Rating . | . . . . . Part Studies Acquired . | . . . . . Parts Repaired . | . . . . . Time . | . . . . . Parts Recycled . | . . . . . Recycled Matter . | . . . . . Retrieved Matter . | . . . . . Retrieved Components . | . . . . . Parts Scanalyzed . | . . . . . Part Schematics Acquired . | . . . . . Parts Damaged . | . . . . . Bothacking | -11 -10 -10 -10 -9 ------------ Run | Yrd Mat Min Exi Min Used RIF Installer . | . . . . . Robots Hacked . | . . . . . Non-combat . | . . . . . Combat . | . . . . . Robot Hacks Applied . | . . . . . Relay Couplers Released . | . . . . . Fabnet Peak Effective % . | . . . . . Robots Rewired . | . . . . . Allies Hacked . | . . . . . Hacks Repelled . | . . . . . Allies | -11 -10 -10 -10 -9 -------- Run | Yrd Mat Min Exi Min Total Allies . | . . . . . Largest Group . | . . . . . Highest-Rated Group . | . . . . . Highest-Rated Ally . | . . . . . Total Orders . | . . . . . Ally Attacks . | . . . . . Total Damage . | . . . . . Kills . | . . . . . Allies Corrupted . | . . . . . Allies Melted . | . . . . . Intel | -11 -10 -10 -10 -9 ------- Run | Yrd Mat Min Exi Min Active Infowar (turns) 3671 | . 1176 216 1713 566 Terrain 3324 | . 1176 216 1713 219 Seismic 347 | . . . . 347 Robot Analysis Total 1 | . 1 . . . Derelict Logs Recovered 3 | . . . . 3 Drone Launches . | . . . . . Drone Recoveries . | . . . . . Exploration | -11 -10 -10 -10 -9 ------------- Run | Yrd Mat Min Exi Min Turns Passed 3861 | 185 1176 216 1713 571 Spaces Moved 1983 | 105 628 129 743 378 Core 18 | 18 . . . . Treads 1413 | . 538 129 743 3 Legs . | . . . . . Wheels 552 | 87 90 . . 375 Hover . | . . . . . Flight . | . . . . . Fastest Speed 50 | 50 90 160 160 100 Average Speed 145 | 103 149 160 160 115 Slowest Speed 200 | 200 160 160 160 160 Overloaded Moves . | . . . . . Propulsion Burnouts . | . . . . . Robots Hopped . | . . . . . Potential Cave-ins 7 | . . . . 7 Cave-ins Triggered . | . . . . . Exploration Rate (%) 61 | 5 92 46 91 73 Regions Visited 4 Branch Regions 3 Pre-discovered Areas 1 | . . . . 1 Known Exits Taken . | . . . . . Unknown Exits Taken 4 | 1 1 1 1 . Scrap Searched 2 | . . 1 . 1 Spaces Dug 3 | . 2 . 1 . Terrain Destroyed 62 | . 2 . 1 59 Melee . | . . . . . Projectile 13 | . 2 . 1 10 AOE 49 | . . . . 49 Terrain Rammed . | . . . . . Walls Destroyed . | . . . . . Machines Disabled . | . . . . . Actions | -11 -10 -10 -10 -9 --------- Run | Yrd Mat Min Exi Min Total 2756 | 151 751 138 1263 453 Wait 568 | 6 30 5 509 18 Move 1979 | 104 627 128 742 378 Hop . | . . . . . Pick Up 41 | 15 13 2 3 8 Fast Attach . | . . . . . Attach 16 | 6 3 . . 7 Detach . | . . . . . Swap 21 | . 14 2 1 4 Drop 14 | 1 6 1 3 3 Fire 117 | 19 58 . 5 35 Melee . | . . . . . Ram . | . . . . . Kick . | . . . . . Crush . | . . . . . Escape Stasis . | . . . . . Rewire . | . . . . . Trap . | . . . . . Miscellaneous . | . . . . . Route ------- -11/Scrapyard -10/Materials (discovered 4 exits: [*Mat x2] / [*Min x2]) -10/Mines (discovered 3 exits: [*Mat x2] / *Exi) -10/Exiles -9/Mines (discovered 2 exits: [*Mat x2]) History --------- Turn | Location | Event 33 | -11/Scrapyard | Discovered new exit (range 16) 186 | -11/Scrapyard | Entered Materials 321 | -10/Materials | Build established: Mutant 642 | -10/Materials | Discovered new exit (range 13) 655 | -10/Materials | Discovered new exit (range 16) 1053 | -10/Materials | Discovered new exit (range 9) 1080 | -10/Materials | Discovered new exit (range 13) 1362 | -10/Materials | Entered Mines 1439 | -10/Mines | A weapon hastily lodged in a ceiling crevice suddenly fell to the ground 1452 | -10/Mines | Discovered new exit (range 8) 1513 | -10/Mines | Discovered new exit (range 12) 1570 | -10/Mines | Deemed a non-threat by the Exiles lab entrance 1570 | -10/Mines | Discovered new exit (range 5) 1578 | -10/Mines | Entered Exiles 1578 | -10/Exiles | Found Exiles lab abandoned 2033 | -10/Exiles | Discovered new exit (range 14) 3291 | -10/Exiles | Entered Mines 3308 | -9/Mines | Core integrity fell below 50% 3344 | -9/Mines | Learned location of Zion (-7) 3502 | -9/Mines | Discovered new exit (range 7) 3644 | -9/Mines | Learned 2 Materials zone layouts 3762 | -9/Mines | Assembled infested the area 3763 | -9/Mines | Discovered new exit (range 5) 3797 | -9/Mines | Lost 3 parts (1p1n1w) 3814 | -9/Mines | Core integrity fell below 20% 3862 | -9/Mines | Destroyed self with Mini Grenade Launcher Last Messages --------------- 03769_ The unstable cave ceiling collapses. 03772_ Acquired 38 matter. 03774_ The unstable cave ceiling collapses. 03775_ Acquired Lgt. Deuterium Engine. 03776_ The unstable cave ceiling collapses. 03778_ Dropped Lgt. Treads. 03779_ The unstable cave ceiling collapses. 03779_ Acquired Mni. Grenade Launcher. 03780_ The unstable cave ceiling collapses. 03780_ Acquired 41 matter. 03784_ Acquired Cmb. Airjet. 03785_ Acquired 19 matter. 03808_ Slug Cannon destroyed. 03816_ as-53261 destroyed. 03819_ as-24406 destroyed. 03822_ Acquired 9 matter. 03825_ Acquired 6 matter. 03850_ as-26513 destroyed. 03851_ The unstable cave ceiling collapses. 03856_ as-09545 destroyed. Map ----- +----------------------------------------------------+ | # ##??#?# #???????????????????????????????? | | ## #????# #???????????????????????????????? | | ?# #????# #????????????? ?????????????????? | | ?## ###### ###?????????????????????????????? | | ??# ## #???#?????????????????????????? | | ??# ## """ #??#??????????????????????????? | | ?## ## """ #?????????????????????????????? | | ??# """ #?????#???????????????????????? | | #??#### "" #?????#???????????????????????? | | ??????# [ #?????????????????????????????? | | ??????# = = %#?????????????????????????????? | | ##?## #?????????????????????????????? | | ###"########?????????????????????????????? | | #########????????#???? ?????????????????? | | #???????????????????????????????? | | #????????????????????????????? | | ## #???????????????????????????? | | #######??? #??????????????????????????? | | ##??#?????# ?????????????????????????????? | | ##???????#?# ?????????????????????????????? | | #??#?#???#??# ??????????????#??#???????????? | | ????????????# #???????????? ## ????????????? | | ????????????# #??????????? ?????????????? | | ???????????## #####??????# ???????????????? | | #???????????# ###?### ###??????????????? | | ???####?????# ### @ #??????????????? | | ??## ####???# """ ??????????????? | | ### ##?## """ ## #????????????? | | ### """ ### # a ##????????????? | | ##?### #????????????? | | ### ##?????# ##????????????? | | #?## # #???????# ?????????????? | | #??#### # ## ???????# ###????????????? | | #?????# ######## ???????# #??????????????? | | #????## ##????? #???????# #??????????????? | | #????# #???? ######?# #??????????????? | | ?????# #???? ## # ### #??????????????? | | ????### #???# # # # #??????????????? | | ????# ####??? ### #####??????????? | | ????####??????### [ # #??????????? | | ????????????????## [ = "" #??????????? | | ?????????????????### # # """ #??????????? | | ???????????????????# # < """ #??????????? | | ???????????????????## % #??????????? | | ????????????????????### ## #######??????????? | | ??????????????????????######????????????????? | | | | | | | | | +----------------------------------------------------+ Best States ------------- Heat Dissipation 25 Energy Generation 14 Energy Capacity 265 Matter Stores 300 Matter Capacity 300 Sight Range 16 Terrain Scan Range 16 Terrain Scan Density 10 Evasion (%) 42 Recoil Reduction 2 Item Schematics ----------------- None Robot Schematics ------------------ None Fabricated ------------ Nothing Repaired ---------- Nothing Studied --------- None Alien Tech Used ----------------- None Achievements -------------- None Challenges ------------ None Game ------ Seed CatalystLaserAutobeam Manual? 0 Play Time 00:37:14 Cumulative 58.9 hours Start 2025.12.05 @ 21:06:57 End 2025.12.05 @ 22:36:47 Sessions 1 Manual Loads 0 Difficulty Rogue Special Mode None Game No. 28 Rogue 28 Adventurer 0 Explorer 0 Win Type - Total 0 Types 0/0/0/0/0/0/0/0/0/0 Lore% 18 Gallery% 35 Achievement% 23 Wizard Run 0 Options --------- Layout 0 ASCII 0 Keyboard 0 Movement Mouse Keybinds 1 Fullscreen 2 Font 24/Smallcaps Map View 76x50 Zoom Use 0% Tactical HUD 1 Map Filters NONE Filters NONE Steam 1 RUN: d0f8d162-fa09-4f5f-9fd1-de9e84b76a2d